Cogmind - Beta 10.2 @@@ ROGUE MODE // 2021.02.08 @ 21:31:33 Player: Mattmos Result: Destroyed by G-34 Mercenary with Small Laser Performance ------------- Evolutions (0) 0 Regions Visited (1) 200 Robots Destroyed (12) 60 Value Destroyed (195) 195 Prototype IDs (2) 40 Alien Tech Used (0) 0 Bonus (0) 0 TOTAL SCORE: 495 Bonus ------- None Cogmind --------- Core Integrity 0/250 Matter 314/400 Energy 68/100 System Corruption 0% Temperature Cool (12) Movement Core (100) Ox1 Location -10/Materials Parts ------- > --- POWER (1) -------- (None) > --- PROPULSION (2) --- (None) > --- UTILITY (2) ------ Medium Matter Pod Utility Shielding > --- WEAPON (2) ------- Small Laser Small Laser > --- INVENTORY (4) ---- Aluminum Leg Aluminum Leg Peak State ------------ > --- POWER ------------ Light Ion Engine > --- PROPULSION ------- Wheel Wheel > --- UTILITY ---------- Medium Matter Pod Improved Terrain Scanner > --- WEAPON ----------- Small Laser Assault Rifle > --- INVENTORY -------- Aluminum Leg Aluminum Leg Light Assault Rifle [Rating: 8] Favorites ----------- Power Light Ion Engine Engine Light Ion Engine Propulsion Wheel Treads Light Treads Wheel Wheel Utility Medium Matter Pod Device Improved Terrain Scanner Storage Medium Matter Pod Protection Utility Shielding Weapon Assault Rifle Energy Gun Small Laser Ballistic Gun Assault Rifle Build | -11 -10 ------- Run | Scr Mat Slots Evolved . | . . Power . | . . Propulsion . | . . Utility . | . . Weapon . | . . Parts Attached 18 | 10 8 Power 2 | 1 1 Engine 2 | 1 1 Core . | . . Reactor . | . . Propulsion 5 | 3 2 Treads 1 | . 1 Leg . | . . Wheel 4 | 3 1 Hover . | . . Flight . | . . Utility 3 | 2 1 Device 1 | 1 . Storage 1 | 1 . Processor . | . . Hackware . | . . Protection 1 | . 1 Artifact . | . . Weapon 8 | 4 4 Energy Gun 6 | 2 4 Energy Cannon . | . . Ballistic Gun 2 | 2 . Ballistic Cannon . | . . Launcher . | . . Special Weapon . | . . Impact Weapon . | . . Slashing Weapon . | . . Piercing Weapon . | . . Special Melee Weapon . | . . Unidentified Prototypes . | . . Parts Lost 6 | . 6 Power 1 | . 1 Propulsion 1 | . 1 Utility . | . . Weapon 4 | . 4 Highest Loss Streak 6 | . 6 Average Slot Usage (%) 80 | . 80 Engine 11 | . 11 Treads 9 | . 9 Wheel 4 | . 4 Device 3 | . 3 Storage 14 | . 14 Protection 10 | . 10 Energy Gun 13 | . 13 Ballistic Gun 12 | . 12 Naked Turns . | . . Heaviest Build 9 | 9 9 Greatest Support 20 | 20 20 Greatest Overweight (x) 2 | . 2 Average Overweight (x) . | . . Largest Inventory Capacity 4 | 4 4 Average Capacity 4 | 4 4 Most Carried 4 | 4 4 Average Carried 3 | 3 3 Final Capacity 4 | 4 4 Final Carried 4 | 4 2 Class Distribution -------------------- 100% | Mutant Dominant Class ---------------- Mutant | -10/Materials Resources | -11 -10 ----------- Run | Scr Mat Matter Collected 413 | 413 . Remotely . | . . Salvage Created 338 | 157 181 Parts 28 | 18 10 Haulers Intercepted . | . . Recyclers Shooed . | . . Parts Field Recycled . | . . Retrieved Matter . | . . Parts Self-Destructed . | . . Prevented . | . . Kills | -11 -10 ------- Run | Scr Mat Combat Hostiles Destroyed 7 | 1 6 Guns 7 | 1 6 Classes Destroyed 4 | 3 1 Worker 1 | 1 . Tunneler 4 | 4 . Swarmer 3 | . 3 Grunt 4 | 1 3 Best Kill Streak 6 | 4 6 Combat Bots Only 6 | 1 6 Max Kills in Single Turn 1 | 1 1 Gunslinging . | . . Exploded . | . . Melee . | . . Uniques/NPCs Destroyed . | . . Combat | -11 -10 -------- Run | Scr Mat Damage Taken 754 | 43 711 Core 258 | . 258 Absorbed by Shields . | . . Core Remaining (%) 100 | 100 . Volleys Fired 31 | 16 15 Largest 2 | 2 2 Hottest 80 | 60 80 Shots Fired 56 | 32 24 Gun 56 | 32 24 Cannon . | . . Launcher . | . . Special . | . . Kinetic 31 | 22 9 Thermal 25 | 10 15 Explosive . | . . Electromagnetic . | . . Robot Hit Streak 8 | 4 8 Robot Miss Streak 4 | 4 2 Penetration Max . | . . Secondary Targets 1 | . 1 Max Gunslinging Chain 1 | . 1 Shots Hit Robots 33 | 16 17 Core Hits 15 | 7 8 Critical Hits . | . . Critical Kills . | . . Critical Parts Destroyed . | . . Melee Attacks . | . . Impact . | . . Slashing . | . . Piercing . | . . Sneak Attacks . | . . Combat Hostiles . | . . Follow-up Attacks . | . . Damage Inflicted 347 | 165 182 Guns 347 | 165 182 Cannons . | . . Explosions . | . . Melee . | . . Ramming . | . . Kinetic 157 | 97 60 Thermal 190 | 68 122 Explosive . | . . Electromagnetic . | . . Impact . | . . Slashing . | . . Piercing . | . . Highest Corruption . | . . Average Corruption . | . . Corruption Purged . | . . Overload Shots . | . . Overflow Damage . | . . Projectiles . | . . Explosions . | . . Melee . | . . Knockbacks . | . . Impact . | . . Kinetic . | . . Secondary . | . . Self-Inflicted Damage . | . . Shots . | . . Rammed . | . . Targets Rammed . | . . Kicked . | . . Crushed . | . . Highest Temperature 69 | 24 69 Average Temperature 26 | 15 31 Received Heat Transfer 309 | 24 285 Siege Activations . | . . Robots Corrupted . | . . Combat Hostiles . | . . Parts Fried . | . . Impact Corruptions . | . . Robots Melted . | . . Combat Hostiles . | . . Parts Melted 2 | . 2 Heat Transferred 425 | 150 275 Parts Sabotaged . | . . Parts Stolen . | . . Parts Stripped . | . . Power Chain Reactions . | . . Missiles Intercepted . | . . Alert | -11 -10 ------- Run | Scr Mat Peak Influence 159 | 45 159 Initial 29 | . 29 Average 32 | 20 45 Maximum Alert Level . | . . Low Security (%) 100 | 100 100 Level 1 . | . . Level 2 . | . . Level 3 . | . . Level 4 . | . . Level 5 . | . . High Security . | . . Max Security . | . . Squads Dispatched 2 | . 2 Investigation 2 | . 2 Extermination . | . . Reinforcement . | . . Assault . | . . Garrison . | . . Intercept . | . . Construction Impeded . | . . Haulers Reinforced . | . . Stealth | -11 -10 --------- Run | Scr Mat Distress Signals 2 | . 2 Communications Jammed . | . . Distress Signals . | . . Times Spotted 16 | 1 15 Peak Tracking Total 11 | 1 11 Tactical Retreats 1 | . 1 Traps | -11 -10 ------- Run | Scr Mat Traps Triggered 1 | . 1 Indirectly . | . . Trap Hack Attempts . | . . Triggered . | . . Disarmed . | . . Reprogrammed . | . . Reused . | . . Traps Extracted . | . . Installed . | . . Triggered . | . . Machines | -11 -10 ---------- Run | Scr Mat Machines Disabled . | . . Max in Single Turn . | . . Machines Sabotaged . | . . Garrisons Compromised . | . . Overloaded Fab Kills . | . . Fab Network Shutdowns . | . . Hacking | -11 -10 --------- Run | Scr Mat Machines Accessed 2 | . 2 Terminals 2 | . 2 Fabricators . | . . Repair Stations . | . . Recycling Units . | . . Scanalyzers . | . . Garrison Access . | . . Total Hacks 9 | . 9 Successful 6 | . 6 Failed 3 | . 3 Catastrophic . | . . Database Lockouts . | . . Manual . | . . Terminals 9 | . 9 Fabricators . | . . Repair Stations . | . . Recycling Units . | . . Scanalyzers . | . . Garrison Access . | . . Terminal Hacks 6 | . 6 Record 1 | . 1 Prototype ID Bank 1 | . 1 Emergency Access Points 1 | . 1 Alert Level 1 | . 1 Dispatch Records 1 | . 1 Zone Layout 1 | . 1 Fabricator Hacks . | . . Repair Station Hacks . | . . Recycling Unit Hacks . | . . Scanalyzer . | . . Garrison Access Hacks . | . . Unauthorized Hacks . | . . Terminals . | . . Fabricators . | . . Repair Stations . | . . Recycling Units . | . . Scanalyzers . | . . Garrison Access . | . . Data Cores Recovered . | . . Used . | . . Hacking Detections 1 | . 1 Full Trace Events . | . . Feedback Events . | . . Feedback Blocked . | . . Robot Schematics Acquired . | . . Robots Built . | . . Matter . | . . Time . | . . Total Robot Build Rating . | . . Part Schematics Acquired . | . . Parts Built . | . . Matter . | . . Time . | . . Total Part Build Rating . | . . Parts Repaired . | . . Time . | . . Parts Recycled . | . . Recycled Matter . | . . Retrieved Matter . | . . Retrieved Components . | . . Parts Scanalyzed . | . . Part Schematics Acquired . | . . Parts Damaged . | . . Bothacking | -11 -10 ------------ Run | Scr Mat Used RIF Installer . | . . Robots Hacked . | . . Non-combat . | . . Combat . | . . Robot Hacks Applied . | . . Relay Couplers Released . | . . Robots Rewired . | . . Allies Hacked . | . . Hacks Repelled . | . . Allies | -11 -10 -------- Run | Scr Mat Total Allies . | . . Largest Group . | . . Highest-Rated Group . | . . Highest-Rated Ally . | . . Total Orders . | . . Ally Attacks . | . . Total Damage . | . . Kills . | . . Allies Corrupted . | . . Allies Melted . | . . Intel | -11 -10 ------- Run | Scr Mat Robot Analysis Total . | . . Derelict Logs Recovered . | . . Drone Launches . | . . Drone Recoveries . | . . Exploration | -11 -10 ------------- Run | Scr Mat Turns Passed 511 | 250 261 Spaces Moved 398 | 229 169 Core 47 | 25 22 Treads 89 | . 89 Legs . | . . Wheels 262 | 204 58 Hover . | . . Flight . | . . Fastest Speed 50 | 50 50 Average Speed 94 | 76 118 Slowest Speed 160 | 80 160 Overloaded Moves . | . . Propulsion Burnouts . | . . Robots Hopped . | . . Cave-ins Triggered . | . . Exploration Rate (%) 15 | 6 24 Regions Visited 1 Branch Regions . Pre-discovered Areas . | . . Known Exits Taken . | . . Unknown Exits Taken 1 | 1 . Scrap Searched . | . . Spaces Dug . | . . Terrain Destroyed . | . . Melee . | . . Projectile . | . . AOE . | . . Terrain Rammed . | . . Walls Destroyed . | . . Machines Disabled . | . . Actions | -11 -10 --------- Run | Scr Mat Total 486 | 277 209 Wait . | . . Move 397 | 228 169 Hop . | . . Pick Up 25 | 16 9 Fast Attach . | . . Attach 17 | 9 8 Detach 2 | 2 . Swap 1 | 1 . Drop 13 | 5 8 Fire 31 | 16 15 Melee . | . . Ram . | . . Kick . | . . Crush . | . . Escape Stasis . | . . Rewire . | . . Trap . | . . Miscellaneous . | . . Route ------- -11/Scrapyard -10/Materials (discovered 1 exit: [*Mat]) History --------- Turn | Location | Event 2 | -11/Scrapyard | Met Revision 17 125 | -11/Scrapyard | Discovered new exit (range 8) 251 | -11/Scrapyard | Entered Materials 342 | -10/Materials | Build established: Mutant 428 | -10/Materials | Discovered new exit (range 10) 489 | -10/Materials | Core integrity fell below 50% 494 | -10/Materials | Core integrity fell below 20% 512 | -10/Materials | Destroyed by G-34 Mercenary with Small Laser Last Messages --------------- 00460_ U-05 Engineer lays Concrete. 00466_ G-34 Mercenary destroyed. 00466_ U-05 Engineer lays Concrete. 00468_ U-05 Engineer destroyed. 00469_ G-34 Mercenary destroyed. 00470_ Sml. Laser destroyed. 00472_ W-16 Scout sends out distress signal. 00477_ Lgt. Ion Engine destroyed. 00480_ Assault Rifle destroyed. 00485_ Sml. Laser destroyed. 00486_ S-10 Pest destroyed. 00487_ Lgt. Treads destroyed. 00490_ S-10 Pest destroyed. 00491_ Sml. Laser destroyed. 00497_ K-01 Serf collects debris. 00502_ Acquired Sml. Laser. 00502_ K-01 Serf collects debris. 00503_ Acquired Sml. Laser. 00509_ Flight Unit melted. 00509_ S-10 Pest destroyed. Map ----- +----------------------------------------------------+ | ????????????????????????????? | | ????????????????????????????? | | ???#????????????????????????? | | ???#!???????????????????????? | | ???# ??????????????????????? | | ???# ?????????????????????? | | ????? "???????????????????#? | | ?????? ????????????????? #? | | ????####+####???????????? #? | | ????# #??????????? ## | | ????# < ############ | | ????# =%*=^!= | | ????############%%[%*== | | ??????##########=*=|!%% " ## | | ??????# #*= =%! " ## | | ??????#"" """ #! "" ## | | ??????#"T """ !# ## | | ??????#"" """ # ## | | ??????# # ###### | | ??????# """ # #????# | | ??????# """ # #????# | | ??????# """ + ### #????# | | #?????# # #?# #????# | | ??????###/###### ### ###### | | ######### ##### ## | | # [@ # ## | | # [ # T ## """ | | # g% ##### ## """ | | # # ######+#### """ | | ##+##### # + | | # * # # """ #### | | # ! # # """ ####+####### | | # + + """ # #? | | # == # # # #? | | # # # # """ """ #? | | # ########### """ """ #? | | ########???#?????# """ """ #? | | ?????????????????# #? | | ?????????????????# #? | | ?????????????????# #? | | ?????????????????###########? | | ????????????????????????????? | | ?????????????????????????#??? | | ??????????????????????#?????? | | ????????????????????????????? | | ????????????????????????????? | | ????????????????????????????? | | ????????????????????????????? | | | | | +----------------------------------------------------+ Best States ------------- Heat Dissipation 25 Energy Generation 10 Energy Capacity 125 Matter Stores 400 Matter Capacity 400 Sight Range 16 Terrain Scan Range 16 Terrain Scan Density 10 Utility Shielding 33 Evasion (%) 50 Recoil Reduction 1 Item Schematics ----------------- None Robot Schematics ------------------ None Fabricated ------------ Nothing Alien Tech Used ----------------- None Achievements -------------- None Challenges ------------ None Game ------ Seed CannonCoolantGun Manual? 0 Play Time 00:13:05 Cumulative 1.8 hours Start 2021.02.08 @ 21:20:49 End 2021.02.08 @ 21:31:33 Sessions 1 Manual Loads 0 Difficulty Rogue Special Mode None Game No. 2 Rogue 2 Adventurer 0 Explorer 0 Win Type - Total 0 Types 0/0/0/0/0/0/0/0/0 Lore% 0 Gallery% 3 Achievement% 2 Wizard Run 0 Options --------- ASCII 0 Keyboard 0 Movement Mouse Keybinds 0 Fullscreen 1 Font 18/Smallcaps Map View 76x50 Tactical HUD 1 Map Filters NONE Filters NONE Steam 1 RUN: 08440a39-6042-4850-808f-f6886f97def3